bitfinex/quotes_BTCUSD_20220212
["timestamp","ask_amount","ask_price","bid_price","bid_amount"]
[1644637330770,0.00061485,42323.0,42322.0,0.388592]
[1644637330972,0.00061485,42323.0,42322.0,0.059081]
[1644637331170,0.0001,42323.0,42322.0,0.059081]
[1644637332171,0.0001,42323.0,42321.0,0.00191611]
[1644637332572,0.0001,42323.0,42322.0,0.329511]
[1644637334621,0.0001,42323.0,42321.0,0.00191611]
[1644637334822,0.0001,42323.0,42322.0,0.329511]
[1644637335821,0.0001,42323.0,42321.0,0.00191611]
[1644637336022,0.0001,42323.0,42322.0,0.329511]
[1644637336428,0.0001,42323.0,42321.0,0.00191611]
[1644637337824,0.0001,42323.0,42322.0,0.329511]
[1644637338470,0.0001,42323.0,42321.0,0.00191611]
[1644637340073,0.0001,42323.0,42315.0,0.34641427]
[1644637341073,0.00049789,42321.0,42315.0,0.34641427]
[1644637341275,0.00049789,42321.0,42315.0,0.260068]
[1644637341674,0.00049789,42321.0,42316.0,0.329511]
[1644637342119,0.00049789,42321.0,42315.0,0.118168]
[1644637342120,0.0001,42323.0,42315.0,0.118168]
[1644637342323,0.00049789,42321.0,42315.0,0.118168]
[1644637343320,0.0001,42323.0,42318.0,0.05]
[1644637343521,0.00049789,42320.0,42318.0,0.109086]
[1644637344122,0.00049789,42320.0,42319.0,0.329511]
[1644637344321,0.00049789,42320.0,42318.0,0.109086]
[1644637344522,0.0001,42323.0,42318.0,0.05]
[1644637344723,0.00048111,42322.0,42318.0,0.05]
[1644637345668,0.0001,42323.0,42318.0,0.05]
[1644637345869,0.00048111,42322.0,42318.0,0.05]
[1644637346872,0.0001,42323.0,42318.0,0.05]
[1644637347071,0.00048111,42322.0,42318.0,0.05]
[1644637348072,0.0001,42323.0,42318.0,0.05]
[1644637348271,0.00048474,42322.0,42318.0,0.05]
[1644637348671,0.00048474,42322.0,42320.0,0.329511]
[1644637348871,0.00048474,42322.0,42318.0,0.05]
[1644637349271,0.0001,42323.0,42318.0,0.05]
[1644637349522,0.00048474,42322.0,42318.0,0.05]
[1644637349722,0.00048474,42322.0,42319.0,0.329511]
[1644637350127,0.00048474,42322.0,42320.0,0.00191478]
[1644637350620,0.00058474,42323.0,42320.0,0.00191478]
[1644637351722,0.0001,42323.0,42320.0,0.00191478]
[1644637353974,0.19964869,42322.0,42321.0,0.329511]
[1644637354177,0.19974869,42322.0,42321.0,0.329511]
[1644637354574,0.19974869,42322.0,42320.0,0.00191478]
[1644637354775,0.0001,42321.0,42320.0,0.00191478]
[1644637356174,0.0001,42321.0,42320.0,0.33142578]
[1644637356374,0.10850875,42316.0,42315.0,0.33794449]
[1644637356576,0.10850875,42316.0,42315.0,0.58967017]
[1644637357239,0.10860875,42316.0,42315.0,0.63993306]
[1644637357739,0.10860875,42316.0,42315.0,0.70812554]
[1644637358141,0.10860875,42316.0,42315.0,0.58966468]
[1644637358339,0.10860875,42316.0,42315.0,0.388601]
[1644637359943,0.11065349,42316.0,42315.0,0.05909]
[1644637363579,0.11065349,42316.0,42315.0,0.26014333]
[1644637363777,0.11065349,42316.0,42315.0,0.05909]
[1644637364633,0.11065349,42316.0,42315.0,0.388601]
[1644637364832,0.11065349,42316.0,42315.0,0.26014928]
[1644637365231,0.11065349,42316.0,42315.0,0.05909]
[1644637366638,0.11065349,42316.0,42315.0,0.35150984]
[1644637367937,0.11065349,42316.0,42315.0,0.05909]
[1644637368774,0.11065349,42316.0,42315.0,0.388601]
[1644637368976,0.11065349,42316.0,42315.0,0.05909]
[1644637370374,0.11065349,42316.0,42315.0,0.13691763]
[1644637372227,0.11065349,42316.0,42315.0,0.58613755]
[1644637372429,0.10959075,42316.0,42315.0,0.58613755]
[1644637372626,0.10959075,42316.0,42315.0,0.91564855]
[1644637373628,0.10959075,42316.0,42315.0,1.21724702]
[1644637374331,0.10959075,42316.0,42315.0,1.04733938]
[1644637374531,0.10959075,42316.0,42315.0,0.90689289]
[1644637374733,0.10959075,42316.0,42315.0,1.39616563]
[1644637375132,0.10959075,42316.0,42315.0,1.39616384]
[1644637375334,0.11078633,42316.0,42315.0,1.39616384]
[1644637375534,0.11078633,42316.0,42315.0,1.06665284]
[1644637376081,0.11078633,42316.0,42315.0,0.76505616]
[1644637376277,0.00048409,42318.0,42317.0,0.589571]
[1644637376476,0.00048409,42318.0,42317.0,0.89912484]
[1644637376877,0.00022817,42325.0,42317.0,1.08679911]
[1644637377076,0.00216421,42326.0,42322.0,0.329511]
[1644637377276,0.00193604,42326.0,42322.0,0.329511]
[1644637377476,0.00216421,42326.0,42322.0,0.329511]
[1644637377676,0.00193604,42326.0,42322.0,0.329511]
[1644637378076,0.00022817,42327.0,42322.0,0.329511]
[1644637378276,0.00048406,42326.0,42322.0,0.329511]
[1644637378680,0.00048406,42326.0,42321.0,0.26013718]
[1644637379280,0.00022817,42327.0,42321.0,0.26013718]
[1644637379526,0.00048406,42326.0,42321.0,0.25513718]
[1644637379727,0.00048406,42326.0,42322.0,0.329511]
[1644637380527,0.00022817,42327.0,42322.0,0.329511]
[1644637380727,0.00048406,42326.0,42322.0,0.329511]
[1644637381728,0.00032817,42330.0,42328.0,0.07117174]
[1644637381929,0.0001,42330.0,42329.0,0.329511]
[1644637382128,0.00032812,42330.0,42328.0,0.07117174]
[1644637382328,0.0001,42330.0,42329.0,0.329511]
[1644637382528,0.00032812,42330.0,42328.0,0.07117174]
[1644637382728,0.0001,42330.0,42325.0,0.059077]
[1644637382929,0.00022812,42330.0,42326.0,0.329511]
[1644637383174,0.0001,42330.0,42326.0,0.329511]
[1644637383373,0.00032812,42330.0,42326.0,0.329511]
[1644637383575,0.0001,42330.0,42326.0,0.329511]
[1644637383776,0.00032812,42330.0,42326.0,0.329511]
[1644637384077,0.0001,42330.0,42326.0,0.329511]
[1644637384274,0.00081217,42330.0,42326.0,0.329511]
[1644637384479,0.00058405,42330.0,42326.0,0.329511]
[1644637384674,0.00081217,42330.0,42326.0,0.329511]
[1644637385275,0.00032812,42330.0,42326.0,0.329511]
[1644637385678,0.00081217,42330.0,42326.0,0.41133617]
[1644637385976,0.00048405,42330.0,42327.0,0.329511]
[1644637386376,0.25,42329.0,42322.0,0.329511]
[1644637386579,0.0001,42328.0,42322.0,0.329511]
[1644637386777,0.00022812,42329.0,42322.0,0.329511]
[1644637387027,0.0001,42330.0,42322.0,0.329511]
[1644637387227,0.00032812,42330.0,42325.0,0.059077]
[1644637387430,0.0001,42330.0,42326.0,0.329511]
[1644637387629,0.00022812,42330.0,42326.0,0.329511]
[1644637388028,0.00071217,42330.0,42326.0,0.329511]
[1644637388231,0.00048405,42330.0,42326.0,0.329511]
[1644637388829,0.00032812,42332.0,42326.0,0.329511]
[1644637389234,0.00048405,42330.0,42326.0,0.329511]
[1644637389430,0.00048405,42330.0,42325.0,0.059077]
[1644637389630,0.00048405,42330.0,42326.0,0.3885804]
[1644637389831,0.00048405,42330.0,42326.0,0.0590694]
[1644637390031,0.00160996,42328.0,42326.0,0.0590694]
[1644637390431,0.00183808,42328.0,42326.0,0.0590694]
[1644637390876,0.00183808,42328.0,42327.0,0.329511]
[1644637391076,0.00160996,42328.0,42327.0,0.05907]
[1644637391676,0.00160996,42328.0,42327.0,0.388581]
[1644637393777,0.00160996,42328.0,42327.0,0.05907]
[1644637394442,0.00160996,42328.0,42327.0,0.388581]
[1644637394934,0.00160996,42328.0,42327.0,0.58953535]
[1644637395333,0.00160996,42328.0,42327.0,0.63683535]
[1644637395533,0.00103999,42328.0,42327.0,0.435881]
[1644637397241,0.00103999,42328.0,42327.0,0.535881]
[1644637397838,0.0013803,42329.0,42328.0,0.88592365]
[1644637398191,0.0013803,42329.0,42328.0,0.93322365]
[1644637398390,0.00115218,42329.0,42328.0,1.22064111]
[1644637399392,0.00115218,42329.0,42328.0,1.30887896]
[1644637399595,0.00115218,42329.0,42328.0,1.50966527]
[1644637399994,0.00115218,42329.0,42328.0,1.30887896]
[1644637400394,0.00022812,42330.0,42329.0,0.329511]
[1644637400592,0.00048405,42331.0,42330.0,0.22580624]
[1644637400792,0.00048405,42331.0,42330.0,0.60261724]
[1644637400992,0.00022812,42332.0,42330.0,0.77978624]
[1644637401192,0.00163622,42333.0,42331.0,0.329511]
[1644637401392,0.00022812,42332.0,42331.0,0.329511]
[1644637401592,0.00163622,42333.0,42331.0,0.376811]
[1644637402233,0.00115218,42333.0,42331.0,0.44124134]
[1644637402431,0.0013803,42333.0,42331.0,0.44124134]
[1644637402729,0.00115218,42333.0,42331.0,0.44124134]
[1644637403028,0.0013803,42333.0,42331.0,0.44124134]
[1644637403629,0.00115218,42333.0,42331.0,0.44124134]
[1644637403828,0.0013803,42333.0,42331.0,0.44124134]
[1644637404831,0.00115218,42333.0,42331.0,0.44124134]
[1644637405028,0.0013803,42333.0,42331.0,0.44124134]
[1644637405429,0.00022812,42333.0,42332.0,0.177158]
[1644637405676,0.00022812,42338.0,42333.0,0.329511]
[1644637405879,0.01232812,42339.0,42337.0,0.21528533]
[1644637406080,0.0121,42339.0,42337.0,0.54479633]
[1644637406282,0.01222907,42339.0,42337.0,0.54479633]
[1644637406587,0.01222907,42339.0,42338.0,0.0473]
[1644637406779,0.012,42339.0,42338.0,0.0473]
[1644637408878,0.012,42339.0,42338.0,0.34477138]
[1644637409279,0.012,42339.0,42338.0,0.53236066]
[1644637409539,0.012,42339.0,42338.0,0.23488928]
[1644637409743,0.012,42339.0,42338.0,0.0473]
[1644637411141,0.012,42339.0,42338.0,0.376811]
[1644637411341,0.012,42339.0,42338.0,0.0473]
[1644637412946,0.012,42339.0,42338.0,0.376811]
[1644637413179,0.012,42339.0,42338.0,0.0473]
[1644637413379,0.012,42339.0,42338.0,0.376811]
[1644637413678,0.012,42339.0,42338.0,0.0473]
[1644637414478,0.012,42339.0,42338.0,0.376811]
[1644637414680,0.012,42339.0,42338.0,0.0473]
[1644637416482,0.012,42339.0,42338.0,0.00974291]
[1644637417536,0.012,42339.0,42338.0,0.33925391]
[1644637417742,0.012,42339.0,42338.0,0.00974291]
[1644637417937,0.012,42339.0,42338.0,0.33925391]
[1644637418337,0.012,42339.0,42338.0,0.00974291]
[1644637419536,0.012,42339.0,42338.0,0.33925391]
[1644637419737,0.012,42339.0,42338.0,0.00974291]
[1644637423898,0.012,42339.0,42338.0,0.30341016]
[1644637424099,0.012,42339.0,42338.0,0.63292116]
[1644637424299,0.012,42339.0,42338.0,0.30341016]
[1644637424529,0.012,42339.0,42338.0,0.00974291]
[1644637425628,0.012,42339.0,42338.0,0.33925391]
[1644637425828,0.012,42339.0,42338.0,0.31496131]
[1644637426431,0.012,42339.0,42338.0,0.00974291]
[1644637427935,0.012,42339.0,42338.0,0.33925391]
[1644637428192,0.012,42339.0,42338.0,0.00974291]
[1644637428394,0.012,42339.0,42338.0,0.33925391]
[1644637428592,0.012,42339.0,42338.0,0.00974291]
[1644637429495,0.00122907,42340.0,42339.0,0.33803337]
[1644637429694,0.001,42340.0,42339.0,0.33803337]
[1644637430496,0.001,42340.0,42339.0,0.42412973]
[1644637434341,0.001,42340.0,42339.0,0.41793137]
[1644637434742,0.001,42340.0,42339.0,0.00232401]
[1644637434943,0.330177,42340.0,42339.0,0.00232401]
[1644637435142,0.330277,42340.0,42339.0,0.00232401]
[1644637435341,0.33140723,42340.0,42339.0,0.00232401]
[1644637435812,0.00223023,42340.0,42339.0,0.00232401]
[1644637436008,0.00213023,42340.0,42339.0,0.00232401]
[1644637444382,0.00223023,42340.0,42339.0,0.00232401]
[1644637444781,0.33140723,42340.0,42339.0,0.00232401]
[1644637445082,0.00223023,42340.0,42339.0,0.00232401]
[1644637445282,0.00213023,42340.0,42339.0,0.00232401]
[1644637448130,0.33130723,42340.0,42339.0,0.00232401]
[1644637448330,0.00223023,42340.0,42339.0,0.00232401]
[1644637448529,0.00213023,42340.0,42339.0,0.00232401]
[1644637449830,0.001,42340.0,42339.0,0.00232401]
[1644637455037,0.380177,42340.0,42339.0,0.00232401]
[1644637455235,0.69634846,42340.0,42339.0,0.00232401]
[1644637455433,0.46717146,42340.0,42339.0,0.00232401]
[1644637455634,0.46717146,42340.0,42339.0,0.00224997]
[1644637455635,0.51717146,42340.0,42339.0,0.00224997]
[1644637456637,0.84634846,42340.0,42339.0,0.00224997]
[1644637457135,0.51717146,42340.0,42339.0,0.00224997]
[1644637457334,0.2011,42340.0,42339.0,0.00224997]
[1644637457834,0.1011,42340.0,42339.0,0.00224997]
[1644637459083,0.430277,42340.0,42339.0,0.00224997]
[1644637459285,0.530277,42340.0,42339.0,0.00224997]
[1644637459682,0.2011,42340.0,42339.0,0.00224997]
[1644637460283,0.1011,42340.0,42339.0,0.00224997]
[1644637462132,0.430277,42340.0,42339.0,0.00224997]
[1644637462335,0.2011,42340.0,42339.0,0.00224997]
[1644637462833,0.530277,42340.0,42339.0,0.00224997]
[1644637464634,0.470277,42340.0,42339.0,0.00224997]
[1644637466087,0.1411,42340.0,42339.0,0.00224997]
[1644637466387,0.0411,42340.0,42339.0,0.00224997]
[1644637466587,0.0011,42340.0,42339.0,0.00224997]
[1644637466887,0.330177,42340.0,42339.0,0.00224997]
[1644637467091,0.380177,42340.0,42339.0,0.00224997]
[1644637467287,0.480277,42340.0,42339.0,0.00224997]
[1644637467688,0.1511,42340.0,42339.0,0.00224997]
[1644637468288,0.0511,42340.0,42339.0,0.00224997]
[1644637469837,0.380277,42340.0,42339.0,0.00224997]
[1644637470136,0.530277,42340.0,42339.0,0.00224997]
[1644637470337,0.577577,42340.0,42339.0,0.00224997]
[1644637476589,0.09141268,42340.0,42339.0,0.00224997]
[1644637478238,0.05,42340.0,42339.0,0.00224997]
[1644637478438,0.09141268,42340.0,42339.0,0.00224997]
[1644637478938,0.05,42340.0,42339.0,0.00224997]
[1644637479139,0.09141268,42340.0,42339.0,0.00224997]
[1644637479338,0.13871268,42340.0,42339.0,0.00224997]
[1644637481182,0.0973,42340.0,42339.0,0.00224997]
[1644637481480,0.13871268,42340.0,42339.0,0.00224997]
[1644637481880,0.13881268,42340.0,42339.0,0.00224997]
[1644637483082,0.09151268,42340.0,42339.0,0.00224997]
[1644637489891,0.0501,42340.0,42339.0,0.00224997]
[1644637491789,0.0001,42340.0,42339.0,0.00224997]
[1644637500150,0.0501,42340.0,42339.0,0.00224997]
[1644637501151,0.29947592,42340.0,42339.0,0.0021757]
[1644637501554,0.0501,42340.0,42339.0,0.0021757]
[1644637502651,0.29947592,42340.0,42339.0,0.0021757]
[1644637503500,0.0501,42340.0,42339.0,0.0021757]
[1644637507140,0.24996407,42342.0,42341.0,0.01896485]
[1644637507841,0.27164175,42343.0,42341.0,0.01896485]
[1644637508240,0.32164175,42343.0,42341.0,0.01896485]
[1644637508444,0.18022907,42343.0,42341.0,0.01896485]
[1644637508641,0.28022907,42343.0,42341.0,0.01896485]
[1644637508843,0.28,42343.0,42341.0,0.01896485]
[1644637509042,0.02696093,42342.0,42341.0,0.01896485]
[1644637509245,0.05392186,42342.0,42341.0,0.01896485]
[1644637509442,0.10122186,42342.0,42341.0,0.01896485]
[1644637510689,0.05392186,42342.0,42341.0,0.01896485]
[1644637511292,0.32920888,42342.0,42341.0,0.01896485]
[1644637511692,0.42920888,42342.0,42341.0,0.01896485]
[1644637511894,0.7385817,42342.0,42341.0,0.01896485]
[1644637512294,0.7386817,42342.0,42341.0,0.01896485]
[1644637512593,0.83587717,42342.0,42341.0,0.01896485]
[1644637513794,0.48660888,42342.0,42341.0,0.01896485]
[1644637515538,0.78593165,42342.0,42341.0,0.02111911]
[1644637515838,0.48660888,42342.0,42341.0,0.02111911]
[1644637517040,0.06402186,42342.0,42341.0,0.02111911]
[1644637517242,0.06402186,42342.0,42341.0,0.35037011]
[1644637518290,0.06402186,42342.0,42341.0,0.02111911]
[1644637518793,0.06402186,42342.0,42341.0,0.08017311]
[1644637530739,0.06402186,42342.0,42341.0,0.07801885]
[1644637535491,0.06402186,42342.0,42341.0,0.0799397]
[1644637537136,0.09488947,42349.0,42348.0,0.27717782]
[1644637538137,0.09480413,42349.0,42348.0,0.27717782]
[1644637542389,0.09490413,42349.0,42348.0,0.27717782]
[1644637543393,0.01001466,42349.0,42348.0,0.27717782]
[1644637544637,0.08030902,42349.0,42348.0,0.27717782]
[1644637545634,0.08030902,42349.0,42348.0,0.27909836]
[1644637550205,0.08030902,42349.0,42348.0,0.27717782]
[1644637550904,0.33860617,42349.0,42348.0,0.27717782]
[1644637551106,0.08030902,42349.0,42348.0,0.27717782]
[1644637553340,0.33728953,42349.0,42348.0,0.27717782]
[1644637553938,0.08030902,42349.0,42348.0,0.27717782]
[1644637560237,0.13030902,42349.0,42348.0,0.27717782]
[1644637560637,0.08030902,42349.0,42348.0,0.27717782]
[1644637562941,0.08030902,42349.0,42348.0,0.27708996]
[1644637564888,0.34295317,42349.0,42348.0,0.27708996]
[1644637566392,0.08030902,42349.0,42348.0,0.27708996]
[1644637567247,1.12730307,42350.0,42349.0,0.1530204]
[1644637567447,1.17707274,42350.0,42349.0,0.1530204]
[1644637568646,1.27707274,42350.0,42349.0,0.1530204]
[1644637572295,1.27717274,42350.0,42349.0,0.1530204]
[1644637588096,1.17717274,42350.0,42349.0,0.1530204]
[1644637591142,1.12717274,42350.0,42349.0,0.1530204]
[1644637591742,1.17717274,42350.0,42349.0,0.1530204]
[1644637592842,1.12717274,42350.0,42349.0,0.1530204]
[1644637594701,1.17717274,42350.0,42349.0,0.1530204]
[1644637597142,0.64113264,42350.0,42349.0,0.1530204]
[1644637598144,0.8908025,42350.0,42349.0,0.1530204]
[1644637598944,0.89072358,42350.0,42349.0,0.1530204]
[1644637599143,0.94072358,42350.0,42349.0,0.1530204]
[1644637602999,0.69105372,42350.0,42349.0,0.1530204]
[1644637606151,0.61398098,42350.0,42349.0,0.1530204]
[1644637606355,0.56398098,42350.0,42349.0,0.1530204]
[1644637613847,0.56398098,42350.0,42349.0,0.68329891]
[1644637614148,0.56398098,42350.0,42349.0,0.35404791]
[1644637614347,0.56398098,42350.0,42349.0,0.1530204]
[1644637614952,0.56398098,42350.0,42349.0,0.35390489]
[1644637615151,0.56398098,42350.0,42349.0,0.1530204]
[1644637615350,0.56398098,42350.0,42349.0,0.57024225]
[1644637615551,0.56398098,42350.0,42349.0,0.86882664]
[1644637615995,0.55128098,42350.0,42349.0,0.86882664]
[1644637616195,0.55128098,42350.0,42349.0,0.96882664]
[1644637616597,0.55128098,42350.0,42349.0,0.71754225]
[1644637616795,0.00023033,42351.0,42350.0,0.79786536]
[1644637616996,0.00048351,42352.0,42351.0,0.329251]
[1644637617294,0.00023033,42352.0,42351.0,0.53867956]
[1644637617499,0.00071384,42353.0,42352.0,0.059039]
[1644637617697,0.00048351,42353.0,42352.0,0.38829]
[1644637618497,0.00023033,42354.0,42353.0,0.329251]
[1644637618697,1.0004835,42355.0,42353.0,0.329251]
[1644637618998,1.00071383,42355.0,42353.0,0.329251]
[1644637619198,1.00071383,42355.0,42354.0,0.33783832]
[1644637619451,1.0004835,42355.0,42354.0,0.33783832]
[1644637619642,1.0,42355.0,42354.0,0.33783832]
[1644637622049,1.0001,42355.0,42354.0,0.33783832]
[1644637624821,1.0001,42355.0,42354.0,0.00858732]
[1644637625219,1.0001,42355.0,42354.0,0.01046975]
[1644637625425,1.0001,42355.0,42354.0,0.33972075]
[1644637625619,1.0001,42355.0,42354.0,0.01046975]
[1644637627149,1.0001,42355.0,42354.0,0.33972075]
[1644637627349,0.46420002,42355.0,42354.0,0.01046975]
[1644637628052,0.46420002,42355.0,42354.0,0.39875301]
[1644637629650,0.46420002,42355.0,42354.0,0.06950201]
[1644637629852,0.46420002,42355.0,42354.0,0.01046975]
[1644637630054,0.46420002,42355.0,42354.0,0.33783832]
[1644637630252,0.46420002,42355.0,42354.0,0.00858732]
[1644637631700,0.46420002,42355.0,42353.0,0.00306305]
[1644637631905,0.0001,42354.0,42353.0,0.00306305]
[1644637633104,0.0001,42354.0,42353.0,0.01165037]
[1644637636051,0.0001,42354.0,42353.0,0.00306305]
[1644637636348,0.0001,42354.0,42353.0,0.01165037]
[1644637636747,0.0001,42354.0,42353.0,0.00306305]
[1644637637346,0.0001,42354.0,42353.0,0.01165037]
[1644637639418,0.0001,42354.0,42353.0,0.34090137]
[1644637639615,0.0001,42354.0,42353.0,0.01165037]
[1644637640016,0.0001,42354.0,42353.0,0.01040904]
[1644637642250,0.46433035,42355.0,42353.0,0.01040904]
[1644637642251,0.00048334,42356.0,42354.0,0.3]
[1644637642450,0.00023046,42355.0,42354.0,0.88009224]
[1644637642648,0.011,42359.0,42357.0,0.329251]
[1644637642649,0.00023046,42358.0,42357.0,0.329251]
[1644637642846,0.00023046,42359.0,42358.0,0.7]
[1644637643046,0.00023046,42359.0,42358.0,1.37809227]
[1644637643245,0.00193308,42362.0,42359.0,0.329251]
[1644637643246,0.00216354,42362.0,42359.0,0.329251]
[1644637643449,0.00023046,42361.0,42360.0,0.60334111]
[1644637643647,0.00023046,42362.0,42360.0,0.8126602]
[1644637643852,0.001,42363.0,42361.0,0.059019]
[1644637643853,0.00148332,42363.0,42361.0,0.059019]
[1644637644049,0.00148332,42363.0,42361.0,0.106319]
[1644637644248,0.00148332,42363.0,42362.0,0.329251]
[1644637644847,0.001,42363.0,42362.0,0.329251]
[1644637647907,0.001,42363.0,42357.0,0.05]
[1644637648108,0.0483,42363.0,42357.0,0.05]
[1644637648305,0.27025139,42362.0,42357.0,0.05]
[1644637648505,0.0001,42361.0,42357.0,0.05]
[1644637648708,0.00033043,42361.0,42357.0,0.05]
[1644637648906,0.2128709,42359.0,42357.0,0.05]
[1644637649110,0.2877239,42358.0,42357.0,0.05]
[1644637649309,0.2877239,42358.0,42356.0,0.00047889]
[1644637649547,0.0001,42357.0,42356.0,0.00047889]
[1644637649746,0.00033043,42358.0,42356.0,0.00047889]
[1644637649948,0.0001,42358.0,42356.0,0.00047889]
[1644637650146,0.00033043,42358.0,42356.0,0.00047889]
[1644637650347,0.0001,42358.0,42356.0,0.00047889]
[1644637650547,0.00033043,42358.0,42356.0,0.00047889]
[1644637650747,0.0001,42358.0,42356.0,0.00047889]
[1644637650948,0.00033043,42358.0,42356.0,0.00047889]
[1644637651152,0.0001,42358.0,42356.0,0.00047889]
[1644637651349,0.00033043,42358.0,42356.0,0.00047889]
[1644637651655,0.0001,42358.0,42356.0,0.00047889]
[1644637651850,0.00033043,42358.0,42356.0,0.00047889]
[1644637652050,0.0001,42358.0,42356.0,0.00047889]
[1644637652250,0.0001,42358.0,42357.0,0.329251]
[1644637652251,0.00033043,42358.0,42357.0,0.329251]
[1644637652450,0.0001,42358.0,42356.0,0.00047889]
[1644637652651,0.00033043,42358.0,42356.0,0.00047889]
[1644637652950,0.0001,42358.0,42356.0,0.00047889]
[1644637653201,0.27037221,42358.0,42356.0,0.00047889]
[1644637653402,0.0001,42357.0,42356.0,0.00047889]
[1644637653899,0.06994464,42357.0,42356.0,0.00047889]
[1644637654101,0.5777163,42357.0,42356.0,0.00047889]
[1644637655100,0.33863549,42357.0,42356.0,0.00047889]
[1644637657244,0.06359699,42359.0,42356.0,0.00047889]
[1644637657446,0.06855263,42357.0,42356.0,0.00047889]
[1644637660148,0.11585263,42357.0,42356.0,0.00047889]
[1644637662602,0.11595263,42357.0,42356.0,0.00047889]
[1644637666759,0.0474,42357.0,42356.0,0.00047889]
[1644637666950,0.0473,42357.0,42356.0,0.00047889]
[1644637669910,0.12017335,42357.0,42356.0,0.00047889]
[1644637670109,0.12027335,42357.0,42356.0,0.00047889]
[1644637671408,0.41069087,42357.0,42356.0,0.00047889]
[1644637672748,0.12027335,42357.0,42356.0,0.00047889]
[1644637674347,0.0474,42357.0,42356.0,0.00047889]
[1644637674647,0.0473,42357.0,42356.0,0.00047889]
[1644637675901,0.13536828,42357.0,42356.0,0.00047889]
[1644637676101,0.13546828,42357.0,42356.0,0.00047889]
[1644637676601,0.40202205,42357.0,42356.0,0.00047889]
[1644637678807,0.13546828,42357.0,42356.0,0.00047889]
[1644637679006,0.13546828,42357.0,42356.0,0.00040765]
[1644637680248,0.40050664,42357.0,42356.0,0.00040765]
[1644637680448,0.13546828,42357.0,42356.0,0.00040765]
[1644637682347,0.37546828,42357.0,42356.0,0.00040765]
[1644637683998,0.64679057,42357.0,42356.0,0.00040765]
[1644637684400,0.37546828,42357.0,42356.0,0.00040765]
[1644637684598,0.64613867,42357.0,42356.0,0.00040765]
[1644637686605,0.37546828,42357.0,42356.0,0.00040765]
[1644637687452,0.59160225,42360.0,42359.0,0.14389241]
[1644637687853,0.30029114,42360.0,42359.0,0.14389241]
[1644637688050,0.56080034,42360.0,42359.0,0.14389241]
[1644637690361,0.71080034,42360.0,42359.0,0.14389241]
[1644637690802,1.00160838,42360.0,42359.0,0.14389241]
[1644637691003,0.75221302,42360.0,42359.0,0.14389241]
[1644637691402,0.79951302,42360.0,42359.0,0.14389241]
[1644637692506,0.79961302,42360.0,42359.0,0.14389241]
[1644637693507,1.03961302,42360.0,42359.0,0.14389241]
[1644637697551,0.99820034,42360.0,42359.0,0.14389241]
[1644637697751,1.29778996,42360.0,42359.0,0.14389241]
[1644637697951,1.03961302,42360.0,42359.0,0.14389241]
[1644637698214,0.75,42358.0,42350.0,0.11861436]
[1644637698412,0.04141268,42356.0,42350.0,0.11861436]
[1644637698612,0.0473,42355.0,42350.0,0.11861436]
[1644637698812,0.2496118,42353.0,42350.0,0.11861436]
[1644637699018,0.3352698,42352.0,42350.0,0.11861436]
[1644637699211,0.0001,42351.0,42350.0,0.11861436]
[1644637699412,0.0474,42351.0,42350.0,0.11861436]
[1644637705456,0.05013129,42351.0,42350.0,0.11861436]
[1644637706103,0.29013129,42351.0,42350.0,0.11861436]
[1644637708511,0.34013129,42351.0,42350.0,0.11861436]
[1644637710856,0.29283129,42351.0,42350.0,0.11861436]
[1644637717352,0.64458436,42352.0,42351.0,0.24318355]
[1644637717555,0.84412949,42352.0,42351.0,0.24318355]
[1644637718151,0.64458436,42352.0,42351.0,0.24318355]
[1644637718352,0.84412949,42352.0,42351.0,0.24318355]
[1644637718552,0.54658179,42352.0,42351.0,0.24318355]
[1644637718751,0.59388179,42352.0,42351.0,0.24318355]
[1644637719354,0.64388179,42352.0,42351.0,0.24318355]
[1644637720251,0.79388179,42352.0,42351.0,0.24318355]
[1644637722709,0.79398179,42352.0,42351.0,0.24318355]
[1644637724557,0.59443666,42352.0,42351.0,0.24318355]
[1644637725359,0.59704991,42352.0,42351.0,0.24318355]
[1644637725661,0.63846259,42352.0,42351.0,0.24318355]
[1644637727462,0.87846259,42352.0,42351.0,0.24318355]
[1644637727761,1.58682259,42352.0,42351.0,0.24318355]
[1644637730305,0.16246537,42349.0,42348.0,0.00051377]
[1644637730515,0.7,42348.0,42336.0,0.35]
[1644637730707,0.7,42348.0,42340.0,0.00016465]
[1644637730708,0.04141268,42342.0,42340.0,0.00016465]
[1644637730906,0.0473,42341.0,42334.0,0.00016465]
[1644637731109,0.0473,42341.0,42332.0,0.3]
[1644637731309,0.0894107,42338.0,42332.0,0.00016465]
[1644637731509,0.0473,42337.0,42331.0,0.00016465]
[1644637731706,0.0473,42337.0,42330.0,0.20073177]
[1644637731707,0.0473,42337.0,42330.0,0.20089642]
[1644637731973,0.0473,42337.0,42330.0,0.20073177]
[1644637732461,0.0473,42337.0,42329.0,0.20089642]
[1644637732659,0.0473,42337.0,42329.0,0.20073177]
[1644637733259,0.0473,42337.0,42330.0,0.20073177]
[1644637733861,0.07805245,42331.0,42330.0,0.20073177]
[1644637734061,0.27260315,42331.0,42328.0,0.25090013]
[1644637734262,0.27260315,42331.0,42330.0,0.20084611]
[1644637735463,0.27260315,42331.0,42330.0,0.20085331]
[1644637735707,0.27260315,42331.0,42329.0,0.20101796]
[1644637735907,0.27260315,42331.0,42329.0,0.20085331]
[1644637736108,0.1945507,42331.0,42329.0,0.20101796]
[1644637736308,0.1945507,42331.0,42329.0,0.20085331]
[1644637736708,0.1945507,42331.0,42329.0,0.20101796]
[1644637737408,0.28008034,42331.0,42329.0,0.20101796]
[1644637737609,0.28008034,42331.0,42329.0,0.20085331]
[1644637737809,0.28008034,42331.0,42329.0,0.20101796]
[1644637738011,0.28008034,42331.0,42329.0,0.00016465]
[1644637738211,0.28008034,42331.0,42328.0,0.00051184]
[1644637738212,0.1945507,42331.0,42328.0,0.00051184]
[1644637738510,0.1945507,42331.0,42327.0,0.20085331]
[1644637738711,0.1945507,42331.0,42327.0,0.20136515]
[1644637738912,0.4345507,42331.0,42327.0,0.20136515]
[1644637739310,0.07924367,42330.0,42327.0,0.20136515]
[1644637739567,0.0473,42329.0,42327.0,0.00051184]
[1644637739766,0.0473,42329.0,42325.0,0.00016465]
[1644637739964,0.0473,42329.0,42327.0,0.00016465]
[1644637740262,0.0473,42329.0,42326.0,0.00051185]
[1644637740263,0.21524692,42328.0,42326.0,0.00051185]
[1644637740563,0.0473,42327.0,42326.0,0.00051185]
[1644637740963,0.0473,42327.0,42324.0,0.00016465]
[1644637741164,0.0473,42327.0,42321.0,0.00016465]
[1644637741367,0.0473,42327.0,42320.0,0.20960528]